[Event "Prague Festival Open 2022"]
[Site "Prague"]
[Date "2022.06.14"]
[Round "6.8"]
[White "Popovic, Dusan"]
[Black "Chan, Kim Yew"]
[Result "1-0"]
[ECO "B47"]
[WhiteElo "2480"]
[BlackElo "2316"]
[Annotator "RC"]
[PlyCount "103"]
[EventDate "2022.06.10"]
[EventType "swiss"]
[EventCountry "CZE"]
[SourceTitle "playchess.com"]
[Source "ChessBase"]
[SourceQuality "1"]
[TimeControl "40/5400+30:1800+30"]

1. e4 {[%emt 0:00:10]} c5 {[%emt 0:00:05]} 2. Nf3 {[%emt 0:00:04]} e6 {[%emt 0:00:06]} 3. d4 {[%emt 0:00:15]} cxd4 {[%emt 0:00:05]} 4. Nxd4 {[%emt 0:00:05]} Nc6 {[%emt 0:00:06]} 5. Nc3 {[%emt 0:00:05]} Qc7 {[%emt 0:00:09]} 6. g3 {[%emt 0:00:52]} a6 {[%emt 0:00:46]} 7. Bg2 {[%emt 0:00:06]} Nf6 {[%emt 0:00:26]} 8. O-O {[%emt 0:00:34]} Nxd4 {[%emt 0:00:24]} 9. Qxd4 {[%emt 0:00:08]} Bc5 {[%emt 0:00:03]} 10. Bf4 {[%emt 0:00:09]} d6 {[%emt 0:00:05]} 11. Qd2 {[%emt 0:01:05]} h6 {[%emt 0:00:17]} 12. Rad1 {[%emt 0:00:12]} e5 {[%emt 0:00:16]} 13. Be3 {[%emt 0:00:05]} Be6 {[%emt 0:00:09]} 14. Bxc5 {[%emt 0:00:37]} dxc5 {[%emt 0:00:02]} 15. Nd5 {[%emt 0:00:12]} Bxd5 {[%emt 0:00:02]} 16. exd5 {[%emt 0:00:07]} Qd6 {[%emt 0:00:06]} 17. Rfe1 {[%emt 0:00:28]} O-O {[%emt 0:00:47]} 18. Re3 {[%emt 0:01:16]} Rfe8 {[%emt 0:10:22]} 19. Rde1 {[%emt 0:09:13]} Kf8 {[%emt 0:38:13]} 20. c4 {[%emt 0:29:07]} b5 {[%emt 0:03:24]} 21. Qe2 {[%emt 0:03:50]} Rab8 {[%emt 0:31:04]} 22. cxb5 {[%emt 0:06:22]} axb5 {[%emt 0:00:09]} 23. Rc1 {[%emt 0:21:31]} c4 {[%emt 0:08:23]} 24. b3 {[%emt 0:01:35]} cxb3 {[%emt 0:03:20]} 25. Rxb3 {[%emt 0:07:13]} e4 {[%emt 0:00:01]} 26. Rxb5 {[%emt 0:00:42]} Rxb5 {[%emt 0:02:11]} 27. Qxb5 {[%emt 0:00:10]} Qxd5 {[%emt 0:00:53]} 28. Qxd5 {[%emt 0:02:08]} Nxd5 {[%emt 0:00:01]} 29. a4 {[%emt 0:00:08]} Nf6 {[%emt 0:02:20]} 30. a5 {[%emt 0:00:26]} Ra8 {[%emt 0:00:18]} 31. Ra1 {[%emt 0:02:21]} Ke7 {[%emt 0:00:02]} 32. a6 {[%emt 0:04:00]} Kd6 {[%emt 0:00:17]} 33. Ra4 {[%emt 0:06:27]} Kc5 {[%emt 0:01:03]} 34. Bf1 {[%emt 0:00:10]} Ra7 {[%emt 0:00:37]} 35. h3 {[%emt 0:03:46]} Kb6 {[%emt 0:00:14]} 36. Rb4+ {[%emt 0:00:13]} Kc6 {[%emt 0:00:31]} 37. Rb8 {[%emt 0:02:20]} Nd5 {[%emt 0:01:06]} 38. Bb5+ {[%emt 0:00:40]} Kd6 {[%emt 0:00:29]} 39. Bc4 {[%emt 0:00:19]} Nc7 {[%emt 0:00:33]} 40. Rb6+ {[%emt 0:00:39]} Kd7 {[%emt 0:00:31]} 41. Kf1 {[%emt 0:03:44]} f6 {[%emt 0:09:57]} 42. Ke2 {[%emt 0:01:52]} Ne8 {[%emt 0:00:33]} 43. Bb5+ {[%emt 0:11:10]} Kc7 {[%emt 0:00:13]} 44. Rc6+ {[%emt 0:00:05]} Kd8 {[%emt 0:03:11]} 45. Ke3 {[%emt 0:03:39]} Ke7 {[%emt 0:00:50]} 46. Kd4 {[%emt 0:01:47]} Nd6 {[%emt 0:01:12]} 47. Kc5 {[%emt 0:00:30]} Nxb5 {[%emt 0:01:57]} 48. Kxb5 {[%emt 0:00:05]} Kd7 {[%emt 0:00:02]} 49. Rc4 {[%emt 0:03:38]} Ra8 {[%emt 0:02:01]} 50. Rxe4 {[%emt 0:00:06]} Rb8+ {[%emt 0:00:24]} 51. Ka5 {[%emt 0:00:06]} Kc6 {[%emt 0:00:35]} 52. a7 {[%emt 0:03:48]} 1-0

[Event "Prague Festival Open 2022"]
[Site "Prague"]
[Date "2022.06.14"]
[Round "6.9"]
[White "Seemann, Jakub"]
[Black "Karthik Venkataraman"]
[Result "1-0"]
[ECO "D41"]
[WhiteElo "2363"]
[BlackElo "2480"]
[Annotator "RC"]
[PlyCount "67"]
[EventDate "2022.06.10"]
[EventType "swiss"]
[EventCountry "CZE"]
[SourceTitle "playchess.com"]
[Source "ChessBase"]
[SourceQuality "1"]
[TimeControl "40/5400+30:1800+30"]

1. d4 {[%emt 0:00:03]} Nf6 {[%emt 0:01:33]} 2. c4 {[%emt 0:00:02]} e6 {[%emt 0:00:26]} 3. Nc3 {[%emt 0:00:06]} d5 {[%emt 0:00:26]} 4. cxd5 {[%emt 0:00:10]} Nxd5 {[%emt 0:00:10]} 5. e4 {[%emt 0:00:23]} Nxc3 {[%emt 0:00:05]} 6. bxc3 {[%emt 0:00:05]} c5 {[%emt 0:00:06]} 7. Nf3 {[%emt 0:00:18]} cxd4 {[%emt 0:00:09]} 8. cxd4 {[%emt 0:00:05]} Bb4+ {[%emt 0:00:04]} 9. Bd2 {[%emt 0:00:06]} Bxd2+ {[%emt 0:00:04]} 10. Qxd2 {[%emt 0:00:07]} O-O {[%emt 0:00:04]} 11. Bc4 {[%emt 0:00:08]} Nd7 {[%emt 0:00:04]} 12. O-O {[%emt 0:00:09]} b6 {[%emt 0:00:03]} 13. Rfe1 {[%emt 0:00:08]} Bb7 {[%emt 0:00:03]} 14. Rad1 {[%emt 0:00:05]} Rc8 {[%emt 0:00:06]} 15. Bb3 {[%emt 0:00:05]} Re8 {[%emt 0:00:05]} 16. Re3 {[%emt 0:03:07]} Nf6 {[%emt 0:00:36]} 17. Qe1 {[%emt 0:00:15]} Ng4 {[%emt 0:01:50]} 18. Re2 {[%emt 0:03:57]} Ba6 {[%emt 0:00:05]} 19. Red2 {[%emt 0:02:19]} Qc7 {[%emt 0:01:08]} 20. e5 {[%emt 0:13:59]} Bb7 {[%emt 0:07:16]} 21. Ng5 {[%emt 0:03:47]} Qe7 {[%emt 0:04:24]} 22. f4 {[%emt 0:04:48]} Rc3 {[%emt 0:03:27]} 23. Qh4 {[%emt 0:03:14]} Nh6 {[%emt 0:01:55]} 24. Bc2 {[%emt 0:04:56]} Rec8 {[%emt 0:09:38]} 25. Bxh7+ {[%emt 0:00:23]} Kf8 {[%emt 0:00:04]} 26. f5 {[%emt 0:04:49]} Rc1 {[%emt 0:12:59]} 27. f6 {[%emt 0:02:30]} Qd8 {[%emt 0:00:30]} 28. h3 {[%emt 0:11:43]} Rxd1+ {[%emt 0:04:29]} 29. Rxd1 {[%emt 0:00:17]} Bd5 {[%emt 0:00:11]} 30. Rf1 {[%emt 0:00:45]} Qc7 {[%emt 0:07:45]} 31. fxg7+ {[%emt 0:00:14]} Kxg7 {[%emt 0:00:06]} 32. Rf6 {[%emt 0:00:12]} Ng8 {[%emt 0:00:21]} 33. Bxg8 {[%emt 0:00:13]} Qc2 {[%emt 0:00:06]} 34. Qh7+ {[%emt 0:01:02]} 1-0

[Event "Prague Festival Open 2022"]
[Site "Prague"]
[Date "2022.06.14"]
[Round "6.10"]
[White "Hoefelsauer, Thomas"]
[Black "Kozak, Antoni"]
[Result "0-1"]
[ECO "E06"]
[WhiteElo "2334"]
[BlackElo "2459"]
[Annotator "RC"]
[PlyCount "166"]
[EventDate "2022.06.10"]
[EventType "swiss"]
[EventCountry "CZE"]
[SourceTitle "playchess.com"]
[Source "ChessBase"]
[SourceQuality "1"]
[TimeControl "40/5400+30:1800+30"]

1. d4 {[%emt 0:00:03]} d5 {[%emt 0:00:55]} 2. Nf3 {[%emt 0:00:22]} Nf6 {[%emt 0:00:07]} 3. c4 {[%emt 0:00:04]} e6 {[%emt 0:00:04]} 4. g3 {[%emt 0:00:04]} Be7 {[%emt 0:03:25]} 5. Bg2 {[%emt 0:00:10]} c6 {[%emt 0:00:18]} 6. O-O {[%emt 0:00:42]} O-O {[%emt 0:00:19]} 7. Qc2 {[%emt 0:00:27]} b6 {[%emt 0:01:38]} 8. Nbd2 {[%emt 0:00:32]} Bb7 {[%emt 0:00:08]} 9. e4 {[%emt 0:00:48]} Na6 {[%emt 0:00:06]} 10. a3 {[%emt 0:03:21]} c5 {[%emt 0:09:09]} 11. e5 {[%emt 0:08:44]} Nd7 {[%emt 0:06:20]} 12. cxd5 {[%emt 0:02:25]} Bxd5 {[%emt 0:03:04]} 13. dxc5 {[%emt 0:10:34]} Qc8 {[%emt 0:14:09]} 14. Ne4 {[%emt 0:16:49]} Naxc5 {[%emt 0:04:54]} 15. Nxc5 {[%emt 0:01:07]} Qxc5 {[%emt 0:06:46]} 16. Qxc5 {[%emt 0:06:08]} Nxc5 {[%emt 0:00:04]} 17. Bg5 {[%emt 0:00:42]} Bxg5 {[%emt 0:01:10]} 18. Nxg5 {[%emt 0:00:02]} Bxg2 {[%emt 0:00:07]} 19. Kxg2 {[%emt 0:00:04]} Nd3 {[%emt 0:00:17]} 20. f4 {[%emt 0:10:21]} Nxb2 {[%emt 0:01:44]} 21. Rac1 {[%emt 0:01:41]} Rfc8 {[%emt 0:05:29]} 22. Ne4 {[%emt 0:00:36]} Nc4 {[%emt 0:01:28]} 23. Rc3 {[%emt 0:01:08]} Kf8 {[%emt 0:01:10]} 24. Kf2 {[%emt 0:01:54]} Nb2 {[%emt 0:03:32]} 25. Rb3 {[%emt 0:13:41]} Rc2+ {[%emt 0:03:33]} 26. Ke3 {[%emt 0:03:56]} Rac8 {[%emt 0:01:19]} 27. Rb1 {[%emt 0:03:06]} Nc4+ {[%emt 0:11:33]} 28. Kd3 {[%emt 0:01:14]} Ra2 {[%emt 0:00:47]} 29. Rc3 {[%emt 0:04:05]} Rxa3 {[%emt 0:00:12]} 30. Rxa3 {[%emt 0:00:33]} Nxa3 {[%emt 0:00:03]} 31. Nd6 {[%emt 0:01:03]} Nxb1 {[%emt 0:03:43]} 32. Nxc8 {[%emt 0:00:02]} a5 {[%emt 0:01:16]} 33. Nxb6 {[%emt 0:00:03]} Na3 {[%emt 0:00:04]} 34. Kc3 {[%emt 0:04:08]} h5 {[%emt 0:04:32]} 35. Nc8 {[%emt 0:03:08]} Nb5+ {[%emt 0:01:34]} 36. Kc4 {[%emt 0:00:32]} a4 {[%emt 0:01:06]} 37. Nb6 {[%emt 0:02:01]} a3 {[%emt 0:00:05]} 38. Kb3 {[%emt 0:00:04]} h4 {[%emt 0:04:13]} 39. gxh4 {[%emt 0:00:54]} Nd4+ {[%emt 0:01:40]} 40. Kxa3 {[%emt 0:00:23]} Ne2 {[%emt 0:00:15]} 41. Kb4 {[%emt 0:31:40]} Nxf4 {[%emt 0:30:13]} 42. Kc4 {[%emt 0:00:00]} Ng6 {[%emt 0:00:00]} 43. Nd7+ {[%emt 0:00:00]} Ke7 {[%emt 0:00:00]} 44. h5 {[%emt 0:00:00]} Nh4 {[%emt 0:00:00]} 45. Nc5 {[%emt 0:00:00]} Nf3 {[%emt 0:00:00]} 46. Nd3 {[%emt 0:00:00]} Nxh2 {[%emt 0:00:00]} 47. Kd4 {[%emt 0:00:00]} Ng4 {[%emt 0:00:00]} 48. Ke4 {[%emt 0:00:00]} f6 {[%emt 0:00:00]} 49. exf6+ {[%emt 0:00:00]} gxf6 {[%emt 0:00:00]} 50. Kf4 {[%emt 0:00:00]} Nh6 {[%emt 0:00:00]} 51. Nc5 {[%emt 0:00:00]} Ng8 {[%emt 0:00:00]} 52. Nd3 {[%emt 0:00:00]} Kd6 {[%emt 0:00:00]} 53. Nf2 {[%emt 0:00:00]} Nh6 {[%emt 0:00:00]} 54. Ne4+ {[%emt 0:00:00]} Ke7 {[%emt 0:00:00]} 55. Nc5 {[%emt 0:00:00]} Nf7 {[%emt 0:00:00]} 56. Ne4 {[%emt 0:00:00]} Ne5 {[%emt 0:00:00]} 57. Nc5 {[%emt 0:00:00]} Kf7 {[%emt 0:00:00]} 58. Ne4 {[%emt 0:00:00]} Nc4 {[%emt 0:01:58]} 59. Nc5 {[%emt 0:00:00]} Nd6 {[%emt 0:00:44]} 60. Nd3 {[%emt 0:00:00]} Kg7 {[%emt 0:01:22]} 61. Nc5 {[%emt 0:00:00]} Kf7 {[%emt 0:01:10]} 62. Nd3 {[%emt 0:00:00]} Nb7 {[%emt 0:04:28]} 63. Kg4 {[%emt 0:01:17]} Kg7 {[%emt 0:00:35]} 64. Nf4 {[%emt 0:01:26]} Nc5 {[%emt 0:00:07]} 65. Ne2 {[%emt 0:01:00]} f5+ {[%emt 0:00:25]} 66. Kh4 {[%emt 0:01:10]} Ne4 {[%emt 0:01:39]} 67. Nd4 {[%emt 0:01:37]} Kf6 {[%emt 0:00:06]} 68. Nf3 {[%emt 0:00:55]} Nc5 {[%emt 0:01:03]} 69. Kg3 {[%emt 0:01:10]} Nd7 {[%emt 0:01:52]} 70. Kh4 {[%emt 0:00:52]} Nf8 {[%emt 0:00:56]} 71. Kg3 {[%emt 0:00:25]} Nh7 {[%emt 0:01:19]} 72. Kh4 {[%emt 0:00:02]} e5 {[%emt 0:00:27]} 73. Nd2 {[%emt 0:00:33]} Ng5 {[%emt 0:00:33]} 74. Nc4 {[%emt 0:00:25]} Nf7 {[%emt 0:00:10]} 75. Ne3 {[%emt 0:00:54]} Ke6 {[%emt 0:04:32]} 76. Nd1 {[%emt 0:00:02]} e4 {[%emt 0:00:27]} 77. Ne3 {[%emt 0:01:24]} f4 {[%emt 0:00:54]} 78. Nc2 {[%emt 0:01:22]} Kf5 {[%emt 0:00:39]} 79. Nd4+ {[%emt 0:00:01]} Ke5 {[%emt 0:00:10]} 80. Nc2 {[%emt 0:00:01]} e3 {[%emt 0:00:43]} 81. Kh3 {[%emt 0:01:52]} Ke4 {[%emt 0:00:07]} 82. Kg2 {[%emt 0:01:12]} f3+ {[%emt 0:00:18]} 83. Kf1 {[%emt 0:00:47]} Nh6 {[%emt 0:00:06]} 0-1

[Event "Prague Festival Open 2022"]
[Site "Prague"]
[Date "2022.06.14"]
[Round "6.11"]
[White "Garcia Ramos, Daniel"]
[Black "Sorm, Daniel"]
[Result "0-1"]
[ECO "B46"]
[WhiteElo "2441"]
[BlackElo "2306"]
[Annotator "RC"]
[PlyCount "102"]
[EventDate "2022.06.10"]
[EventType "swiss"]
[EventCountry "CZE"]
[SourceTitle "playchess.com"]
[Source "ChessBase"]
[SourceQuality "1"]
[TimeControl "40/5400+30:1800+30"]

1. e4 {[%emt 0:00:02]} c5 {[%emt 0:00:07]} 2. Nf3 {[%emt 0:00:28]} Nc6 {[%emt 0:00:05]} 3. d4 {[%emt 0:00:07]} cxd4 {[%emt 0:00:05]} 4. Nxd4 {[%emt 0:00:04]} e6 {[%emt 0:00:05]} 5. Nc3 {[%emt 0:00:14]} a6 {[%emt 0:00:25]} 6. Be3 {[%emt 0:00:48]} Nf6 {[%emt 0:00:32]} 7. a3 {[%emt 0:09:33]} Be7 {[%emt 0:04:17]} 8. f4 {[%emt 0:04:10]} d6 {[%emt 0:00:29]} 9. Qf3 {[%emt 0:00:31]} e5 {[%emt 0:01:27]} 10. Nb3 {[%emt 0:23:36]} Bg4 {[%emt 0:07:18]} 11. Qf2 {[%emt 0:01:30]} d5 {[%emt 0:12:27]} 12. fxe5 {[%emt 0:10:52]} Nxe4 {[%emt 0:14:02]} 13. Nxe4 {[%emt 0:06:04]} dxe4 {[%emt 0:00:14]} 14. Qf4 {[%emt 0:00:27]} Bh4+ {[%emt 0:14:50]} 15. g3 {[%emt 0:04:47]} Bf3 {[%emt 0:00:07]} 16. Bc4 {[%emt 0:03:26]} O-O {[%emt 0:01:44]} 17. O-O {[%emt 0:03:00]} Be7 {[%emt 0:02:51]} 18. Nd2 {[%emt 0:08:05]} g5 {[%emt 0:03:57]} 19. Qf5 {[%emt 0:00:06]} Nd4 {[%emt 0:00:12]} 20. Rxf3 {[%emt 0:00:24]} Nxf5 {[%emt 0:05:36]} 21. Rxf5 {[%emt 0:00:01]} Rc8 {[%emt 0:01:51]} 22. e6 {[%emt 0:07:08]} Rxc4 {[%emt 0:04:22]} 23. Nxc4 {[%emt 0:00:42]} fxe6 {[%emt 0:01:35]} 24. Rxf8+ {[%emt 0:01:29]} Qxf8 {[%emt 0:01:46]} 25. Nd2 {[%emt 0:02:54]} Bc5 {[%emt 0:00:30]} 26. Nf1 {[%emt 0:00:35]} Bxe3+ {[%emt 0:04:27]} 27. Nxe3 {[%emt 0:00:01]} Qf3 {[%emt 0:05:01]} 28. Re1 {[%emt 0:01:03]} b5 {[%emt 0:02:07]} 29. Nf1 {[%emt 0:00:58]} Qf5 {[%emt 0:01:30]} 30. b4 {[%emt 0:03:15]} h5 {[%emt 0:02:10]} 31. Re3 {[%emt 0:03:15]} Qd5 {[%emt 0:01:45]} 32. Kf2 {[%emt 0:01:30]} Qd4 {[%emt 0:02:38]} 33. c3 {[%emt 0:03:10]} Qd5 {[%emt 0:01:59]} 34. Ke2 {[%emt 0:00:44]} Qc4+ {[%emt 0:01:41]} 35. Ke1 {[%emt 0:00:09]} Qa2 {[%emt 0:00:22]} 36. Nd2 {[%emt 0:00:31]} Qa1+ {[%emt 0:00:15]} 37. Kf2 {[%emt 0:01:27]} Qh1 {[%emt 0:01:13]} 38. Nxe4 {[%emt 0:01:48]} Qxh2+ {[%emt 0:00:08]} 39. Kf1 {[%emt 0:00:21]} h4 {[%emt 0:01:27]} 40. gxh4 {[%emt 0:00:27]} gxh4 {[%emt 0:00:09]} 41. Nf2 {[%emt 0:30:38]} Qf4 {[%emt 0:30:28]} 42. Ke2 {[%emt 0:00:00]} Qc4+ {[%emt 0:00:00]} 43. Kf3 {[%emt 0:00:00]} Kf7 {[%emt 0:00:00]} 44. Kg2 {[%emt 0:00:00]} Ke7 {[%emt 0:00:00]} 45. Ne4 {[%emt 0:00:00]} e5 {[%emt 0:00:00]} 46. Nf2 {[%emt 0:00:00]} Ke6 {[%emt 0:00:00]} 47. Ne4 {[%emt 0:00:00]} Qd5 {[%emt 0:00:00]} 48. Kh3 {[%emt 0:00:00]} Kf5 {[%emt 0:00:00]} 49. Nf2 {[%emt 0:00:00]} Kf4 {[%emt 0:00:00]} 50. Rd3 {[%emt 0:00:00]} Qg8 {[%emt 0:00:00]} 51. Kh2 {[%emt 0:00:00]} Qg3+ {[%emt 0:03:13]} 0-1

[Event "Prague Festival Open 2022"]
[Site "Prague"]
[Date "2022.06.14"]
[Round "6.12"]
[White "Klimkowski, Jan"]
[Black "Serrano Salvador, Eduardo"]
[Result "1/2-1/2"]
[ECO "C43"]
[WhiteElo "2401"]
[BlackElo "2286"]
[Annotator "RC"]
[PlyCount "43"]
[EventDate "2022.06.10"]
[EventType "swiss"]
[EventCountry "CZE"]
[SourceTitle "playchess.com"]
[Source "ChessBase"]
[SourceQuality "1"]
[TimeControl "40/5400+30:1800+30"]

1. e4 {[%emt 0:00:05]} e5 {[%emt 0:00:14]} 2. Nf3 {[%emt 0:00:14]} Nf6 {[%emt 0:00:16]} 3. d4 {[%emt 0:00:13]} Nxe4 {[%emt 0:00:24]} 4. Bd3 {[%emt 0:00:22]} d5 {[%emt 0:00:30]} 5. Nxe5 {[%emt 0:00:28]} Nd7 {[%emt 0:00:43]} 6. Nc3 {[%emt 0:01:09]} Nef6 {[%emt 0:01:10]} 7. O-O {[%emt 0:01:51]} Be7 {[%emt 0:01:01]} 8. Qf3 {[%emt 0:01:23]} c6 {[%emt 0:01:07]} 9. Ne2 {[%emt 0:10:01]} O-O {[%emt 0:04:42]} 10. Ng3 {[%emt 0:00:39]} Nxe5 {[%emt 0:04:15]} 11. dxe5 {[%emt 0:00:11]} Ng4 {[%emt 0:00:12]} 12. Qe2 {[%emt 0:13:24]} f6 {[%emt 0:05:56]} 13. e6 {[%emt 0:00:29]} Ne5 {[%emt 0:00:51]} 14. Bf5 {[%emt 0:02:07]} g6 {[%emt 0:10:53]} 15. Bh3 {[%emt 0:00:09]} Nc4 {[%emt 0:00:20]} 16. Nf5 {[%emt 0:14:13]} gxf5 {[%emt 0:05:13]} 17. Bxf5 {[%emt 0:00:47]} Bc5 {[%emt 0:14:05]} 18. Bxh7+ {[%emt 0:14:25]} Kxh7 {[%emt 0:00:20]} 19. Qh5+ {[%emt 0:00:06]} Kg8 {[%emt 0:00:05]} 20. Qg6+ {[%emt 0:02:14]} Kh8 {[%emt 0:00:07]} 21. Qh5+ {[%emt 0:00:40]} Kg8 {[%emt 0:00:06]} 22. Qg6+ {[%emt 0:00:43]} 1/2-1/2

[Event "Prague Festival Open 2022"]
[Site "Prague"]
[Date "2022.06.15"]
[Round "7.1"]
[White "Petr, Martin"]
[Black "Motylev, Alexander"]
[Result "1/2-1/2"]
[ECO "B21"]
[WhiteElo "2488"]
[BlackElo "2633"]
[Annotator "TA"]
[PlyCount "71"]
[EventDate "2022.06.10"]
[EventType "swiss"]
[EventCountry "CZE"]
[SourceTitle "playchess.com"]
[Source "ChessBase"]
[SourceQuality "1"]
[TimeControl "40/5400+30:1800+30"]

{[%evp 9,71,-2,-4,-6,0,-14,0,-31,-24,-41,-39,-38,-37,-50,-45,-37,-17,-28,-12,-24,-13,-47,-47,-26,0,0,-9,0,70,50,123,108,136,27,37,-35,-33,-39,-29,-90,0,-96,-88,-82,0,-19,0,0,0,-24,-15,-14,28,-72,0,0,0,-129,-135,-95,0,0,0,-134]} 1. e4 {[%emt 0:00:07]} c5 {[%emt 0:00:14]} 2. Be2 {[%emt 0:00:09]} Nc6 {[%emt 0:00:23]} 3. f4 {[%emt 0:00:11]} d5 {[%emt 0:00:16]} 4. d3 {[%emt 0:00:23]} e6 {[%emt 0:00:18]} 5. Nf3 {[%emt 0:00:22]} Bd6 {[%emt 0:00:11]} 6. O-O {[%emt 0:02:11] B21: Sicilian: 2 f4 and Morra Gambit.} Nge7 {[%emt 0:00:06]} 7. c3 {[%emt 0:04:37]} O-O {[%emt 0:01:23]} 8. Kh1 {[%emt 0:06:36]} f6 {[%emt 0:04:10]} 9. Na3 {[%emt 0:02:23]} b6 {[%emt 0:03:08] [#]} 10. Nb5 $146 {[%emt 0:03:24]} ({Predecessor:} 10. Bd2 Bd7 11. Qe1 Ng6 12. g3 a6 13. Qf2 Nce7 14. c4 dxe4 15. dxe4 Bc6 16. Qe3 {0-1 (36) Moutousis,K (2448)-Halkias,S (2519) Athens 2001}) 10... Bb8 {[%emt 0:01:24]} 11. a4 {[%emt 0:00:04]} Ng6 {[%emt 0:03:30]} 12. g3 {[%emt 0:01:22]} a6 {[%emt 0:01:03]} 13. Na3 {[%emt 0:00:04]} Ra7 {[%emt 0:00:36]} 14. Be3 {[%emt 0:05:38]} Rd7 {[%emt 0:02:10] And now ...dxe4 would win.} 15. Qb1 {[%emt 0:05:44][%cal Oa4a5]} Bb7 {[%emt 0:02:54]} 16. b4 {[%emt 0:01:09]} c4 {[%emt 0:04:50]} 17. dxc4 {[%emt 0:17:57]} dxe4 {[%emt 0:05:43]} 18. Nd4 {[%emt 0:00:02]} (18. Qxe4 Nd4 $1 {[%mdl 512]} 19. Qxb7 Rxb7 $17) 18... Qc8 {[%emt 0:18:17]} (18... Nxd4 $11 19. cxd4 Ne7) 19. b5 {[%emt 0:07:23]} axb5 {[%emt 0:03:25]} ({Black should play} 19... Nxd4 $14 20. cxd4 axb5) 20. Nxc6 $1 $16 {[%emt 0:02:57] White is more active.} Bxc6 {[%emt 0:07:56]} 21. axb5 {[%emt 0:04:40]} (21. cxb5 $16 Bb7 22. Nc4 (22. Bxb6 Qxc3 23. Qc1 Qd2 $14)) 21... Bb7 $11 {[%emt 0:01:15][%cal Od7d3]} 22. Kg1 {[%emt 0:00:52]} (22. Bxb6 e3+ 23. Kg1 (23. Bf3 $2 e2 $19) 23... Rd2 $11) ({White should try} 22. c5 $14 bxc5 23. Nc4) 22... Bd6 $15 {[%emt 0:04:13] Strongly threatening ...Bc5.} 23. Nc2 {[%emt 0:00:37]} (23. Bxb6 $2 Bc5+ 24. Bxc5 Qxc5+ 25. Rf2 e3 $19) 23... Bc5 {[%emt 0:00:56] White must now prevent ...Rd2.} 24. Rd1 {[%emt 0:05:57] Against Rd2} (24. Qe1 $11) 24... e5 {[%emt 0:09:33]} (24... Rxd1+ $17 25. Qxd1 e5) 25. f5 {[%emt 0:05:25]} (25. Rxd7 $11 {remains equal.} Qxd7 26. Bxc5 bxc5 27. Qd1 Qxd1+ 28. Rxd1) 25... Rxd1+ $17 {[%emt 0:06:25]} 26. Qxd1 {[%emt 0:00:20]} Rd8 {[%emt 0:00:54]} (26... Qxf5 27. Bxc5 bxc5 28. Bg4 $14) (26... Ne7 $17 27. Qf1 Nxf5 28. Bxc5 Qxc5+ 29. Qf2 Qxf2+ 30. Kxf2 Kf7) 27. Qe1 {[%emt 0:05:43]} (27. Qc1 $5 {[%cal Rf5g6]} Ne7 28. g4 $15) 27... Qxf5 {[%emt 0:01:56]} 28. Bxc5 {[%emt 0:00:05]} bxc5 {[%emt 0:00:07]} 29. Ne3 {[%emt 0:00:04]} Qg5 {[%emt 0:01:43]} 30. Bg4 {[%emt 0:00:25]} Rd3 {[%emt 0:01:07]} 31. Kf2 {[%emt 0:04:41]} (31. Be6+ $11 Kf8 32. Ng2 (32. Nd5 Nf4 $17)) 31... Nf4 {[%emt 0:10:48]} 32. h4 $11 {[%emt 0:00:01]} Qg6 {[%emt 0:00:36][%cal Od3e3] aiming for ...Rxe3!} 33. Bf5 {[%emt 0:03:28]} (33. Ra7 $11 {keeps the balance.}) 33... Qh5 $17 {[%emt 0:02:16]} 34. Bg4 {[%emt 0:00:08] [#] Against Qf3+} Qg6 {[%emt 0:00:37]} 35. Bf5 {[%emt 0:00:17] Really sharp!} Qh5 {[%emt 0:01:25]} (35... Qh6 $11 36. Ra7 Rxe3 37. Qxe3 Nd3+ 38. Ke2 Nc1+ 39. Kd2 Nb3+ 40. Ke2 Nc1+ 41. Kf2 (41. Kd2 Nb3+ 42. Ke2 Nc1+ $11) 41... Nd3+ 42. Ke2 Nc1+) 36. Bg4 {[%emt 0:00:08] Weighted Error Value: White=0.28 (precise) /Black=0.21 (precise)} 1/2-1/2

[Event "Prague Festival Open 2022"]
[Site "Prague"]
[Date "2022.06.15"]
[Round "7.3"]
[White "Kozak, Antoni"]
[Black "Iniyan, P."]
[Result "1-0"]
[ECO "A13"]
[WhiteElo "2459"]
[BlackElo "2518"]
[Annotator "RC"]
[PlyCount "73"]
[EventDate "2022.06.10"]
[EventType "swiss"]
[EventCountry "CZE"]
[SourceTitle "playchess.com"]
[Source "ChessBase"]
[SourceQuality "1"]
[TimeControl "40/5400+30:1800+30"]

1. Nf3 {[%emt 0:00:03]} Nf6 {[%emt 0:07:54]} 2. c4 {[%emt 0:00:05]} e6 {[%emt 0:01:12]} 3. g3 {[%emt 0:02:42]} d5 {[%emt 0:00:27]} 4. Bg2 {[%emt 0:00:41]} d4 {[%emt 0:01:11]} 5. e3 {[%emt 0:08:05]} c5 {[%emt 0:02:09]} 6. d3 {[%emt 0:02:48]} Nc6 {[%emt 0:00:20]} 7. exd4 {[%emt 0:00:16]} cxd4 {[%emt 0:00:25]} 8. O-O {[%emt 0:04:44]} Bd6 {[%emt 0:01:19]} 9. Bg5 {[%emt 0:00:45]} h6 {[%emt 0:01:16]} 10. Bxf6 {[%emt 0:00:04]} Qxf6 {[%emt 0:00:21]} 11. Nbd2 {[%emt 0:09:18]} Qd8 {[%emt 0:00:23]} 12. a3 {[%emt 0:11:06]} a5 {[%emt 0:00:16]} 13. Qa4 {[%emt 0:01:37]} Bd7 {[%emt 0:00:56]} 14. Ne4 {[%emt 0:05:09]} Be7 {[%emt 0:01:44]} 15. c5 {[%emt 0:24:49]} e5 {[%emt 0:00:33]} 16. Rfe1 {[%emt 0:09:41]} O-O {[%emt 0:15:38]} 17. Rac1 {[%emt 0:00:10]} b6 {[%emt 0:21:34]} 18. Qc4 {[%emt 0:03:59]} Rb8 {[%emt 0:11:08]} 19. Qd5 {[%emt 0:02:00]} Be8 {[%emt 0:12:01]} 20. Qxd8 {[%emt 0:00:43]} Bxd8 {[%emt 0:00:26]} 21. cxb6 {[%emt 0:01:29]} Rxb6 {[%emt 0:00:56]} 22. Nd6 {[%emt 0:00:22]} f6 {[%emt 0:00:10]} 23. Nxe8 {[%emt 0:02:28]} Rxe8 {[%emt 0:00:07]} 24. Nd2 {[%emt 0:03:39]} Ne7 {[%emt 0:00:12]} 25. Nc4 {[%emt 0:00:40]} Rb3 {[%emt 0:01:55]} 26. f4 {[%emt 0:00:49]} exf4 {[%emt 0:05:07]} 27. Nd6 {[%emt 0:01:59]} Rf8 {[%emt 0:00:22]} 28. Nc8 {[%emt 0:00:16]} Rxd3 {[%emt 0:07:09]} 29. Nxe7+ {[%emt 0:00:05]} Bxe7 {[%emt 0:00:03]} 30. Rxe7 {[%emt 0:00:28]} fxg3 {[%emt 0:00:04]} 31. Rcc7 {[%emt 0:01:51]} Rd1+ {[%emt 0:00:05]} 32. Bf1 {[%emt 0:00:02]} gxh2+ {[%emt 0:00:22]} 33. Kxh2 {[%emt 0:00:04]} Rb8 {[%emt 0:00:23]} 34. Rxg7+ {[%emt 0:02:05]} Kf8 {[%emt 0:00:07]} 35. Rh7 {[%emt 0:01:05]} Rxb2+ {[%emt 0:00:11]} 36. Kh3 {[%emt 0:00:26]} Rb3+ {[%emt 0:00:06]} 37. Kh4 {[%emt 0:00:05]} 1-0